fUSD/lending_fUSD_20240709
["ID","MTS","AMOUNT","RATE_DAILY","PERIOD"]
[331565103,1720516237650,-2856.108,0.000129,2]
[331565104,1720516237659,-488.00353973,0.000129,2]
[331565105,1720516237669,-500.0,0.00012935,2]
[331565106,1720516237679,-500.0,0.00012935,2]
[331565107,1720516237688,-500.0,0.00012935,2]
[331565108,1720516237698,-500.0,0.00012935,2]
[331565109,1720516237709,-500.0,0.00012935,2]
[331565110,1720516237719,-500.0,0.00012935,2]
[331565111,1720516237728,-500.0,0.00012935,2]
[331565112,1720516237738,-500.0,0.00012935,2]
[331565113,1720516237748,-618.1443,0.00012935,2]
[331565114,1720516237758,-2487.32350878,0.0001299,2]
[331565115,1720516237767,-1000.0,0.00012999,2]
[331565116,1720516237777,-151.61917082,0.00012999,2]
[331565117,1720516237787,-80697.13268145,0.00013,2]
[331565118,1720516237807,-62854.31918658,0.00013,2]
[331565119,1720516237819,-433.84,0.00013,2]
[331565120,1720516237831,-1337.30407824,0.00013,2]
[331565126,1720516239744,-1145.49596646,0.00013,2]
[331565127,1720516239807,-2338.07358814,0.00013,2]
[331565128,1720516239925,-547.6207503,0.00013,2]
[331565238,1720516243936,-1547.25,0.00013,2]
[331565243,1720516245938,-150.01,0.00012999,2]
[331565244,1720516245947,-1171.3922825,0.00013,2]
[331565245,1720516245959,-592.20419882,0.00013,2]
[331565246,1720516245996,-257.38679223,0.00013,2]
[331565247,1720516246007,-530.6,0.00013,2]
[331565248,1720516246062,-1156.18,0.00013,2]
[331565270,1720516997172,404.1,0.00010542,2]
[331565273,1720517374232,181.06335149,0.00011199,2]
[331565274,1720517419282,-3648.0,0.00012063,2]
[331565275,1720517419305,-256.0,0.00012237,2]
[331565276,1720517419326,-250.0,0.00012458,2]
[331565277,1720517419348,-207.07,0.00012481,2]
[331565278,1720517419370,-1000.0,0.00012607,2]
[331565279,1720517419395,-417.93936495,0.00012652,2]
[331565280,1720517419416,-1521.0,0.000127,2]
[331565281,1720517419441,-404.1,0.00012806,2]
[331565282,1720517419469,-295.89063505,0.00012895,2]
[331565293,1720517431861,-204.10936495,0.00012895,2]
[331565294,1720517431871,-62.42678227,0.00012896,2]
[331565295,1720517432797,-437.57321773,0.00012896,2]
[331565297,1720517432807,-150.01,0.00012999,2]
[331565299,1720517432816,-270.5806918,0.00013,2]
[331565301,1720517432828,-610.32764956,0.00013,2]
[331565303,1720517437881,-1989.47898931,0.00013,2]
[331565304,1720517437900,-4122.20500826,0.00013,2]
[331565305,1720517437918,-15962.35903251,0.00013,2]
[331565306,1720517438007,-8208.53520196,0.00013,2]
[331565307,1720517438023,-1451.33807564,0.00013,2]
[331565308,1720517438111,-1197.01998799,0.00013,2]
[331565309,1720517438123,-788.22726376,0.00013,2]
[331565451,1720517439713,-30583.00247592,0.00013,2]
[331565453,1720517439727,-7997.30575748,0.00013,2]
[331565455,1720517439740,-14778.235088,0.00013,2]
[331565458,1720517439753,-609.78714,0.00013,2]
[331565460,1720517439769,-3038.73003669,0.00013,2]
[331565462,1720517439782,-1924.09839103,0.00013,2]
[331565465,1720517439797,-728.35942077,0.00013,2]
[331565467,1720517439810,-2820.66603228,0.00013,2]
[331565481,1720517439945,-1873.3,0.00013,2]
[331565490,1720517440031,-1001.30950324,0.00013,2]
[331565493,1720517440050,-2923.15264686,0.00013,2]
[331565496,1720517440073,-602.00767301,0.00013,2]
[331565498,1720517440085,-700.75770547,0.00013,2]
[331565501,1720517440098,-527.86805897,0.00013,2]
[331565503,1720517440111,-12733.67562152,0.00013,2]
[331565505,1720517440123,-4302.89567398,0.00013,2]
[331565626,1720517442963,-657.39,0.00013,2]
[331565627,1720517442976,-3592.32883106,0.00013,2]
[331565628,1720517443053,-1079.31918,0.00013,2]
[331565629,1720517443072,-3465.7968536,0.00013,2]
[331565630,1720517443162,-1956.79664633,0.00013,2]
[331565760,1720517444892,-35730.23145936,0.00013,2]
[331565762,1720517444901,-1609.98936773,0.00013,2]
[331565764,1720517444915,-418.23828755,0.00013,2]
[331565766,1720517444926,-2000.0,0.00013,2]
[331565768,1720517444938,-1709.28,0.00013,2]
[331565770,1720517444947,-854.69,0.00013,2]
[331565772,1720517444957,-1706.0,0.00013,2]
[331565774,1720517444969,-1000.0,0.00013,2]
[331565777,1720517444979,-200.0,0.00013,2]
[331565779,1720517444989,-2084.405,0.00013,2]
[331565781,1720517444998,-3626.0625371,0.00013,2]
[331565783,1720517445008,-64331.0539013,0.00013073,2]
[331565785,1720517445018,-8310.3153828,0.00013082,2]
[331565787,1720517445027,-2000.0,0.0001313,2]
[331565789,1720517445037,-200.0,0.0001313,2]
[331565791,1720517445047,-1300.0,0.000132,4]
[331565793,1720517445057,-2000.0,0.00013261,2]
[331565795,1720517445066,-200.0,0.00013261,2]
[331565797,1720517445076,-1000.0,0.000133,2]
[331565799,1720517445086,-2600.0,0.000133,4]
[331565801,1720517445096,-2000.0,0.00013394,2]
[331565803,1720517445105,-200.0,0.00013394,2]
[331565805,1720517445115,-4000.0,0.000134,4]
[331565807,1720517445125,-5300.0,0.000135,4]
[331565810,1720517445135,-427.00309729,0.0001357,2]
[331565812,1720517445144,-9708.53205931,0.0001358,2]
[331565814,1720517445153,-5180.0,0.0001359,2]
[331565816,1720517445162,-1199.0,0.0001359,2]
[331565818,1720517445171,-5815.0,0.0001359,2]
[331565820,1720517445180,-323.31487624,0.00013599,2]
[331565822,1720517445192,-6600.0,0.000136,4]
[331565824,1720517445201,-427.00309722,0.00013617,2]
[331565826,1720517445211,-427.00309722,0.00013664,2]
[331565828,1720517445222,-350.0,0.0001367,2]
[331565830,1720517445231,-33489.48575217,0.00013697,2]
[331565832,1720517445241,-90000.0,0.00013697,2]
[331565834,1720517445251,-200.0,0.00013699,2]
[331565836,1720517445261,-1500.0,0.00013699,2]
[331565838,1720517445270,-629.18,0.00013699,2]
[331565840,1720517445280,-200.0,0.00013699,2]
[331565842,1720517445290,-250.0,0.00013699,2]
[331565844,1720517445299,-262.988,0.000137,2]
[331565846,1720517445309,-1323.419,0.000137,2]
[331565848,1720517445318,-2377.0,0.000137,2]
[331565850,1720517445328,-206.417,0.000137,2]
[331565892,1720517445743,-549.0,0.000137,2]
[331565897,1720517445796,-1999.096,0.000137,2]
[331565899,1720517445806,-3276.0,0.000137,2]
[331565901,1720517445815,-428.876,0.000137,2]
[331565903,1720517445825,-1071.0,0.000137,2]
[331565905,1720517445835,-1300.0,0.000137,5]
[331565907,1720517445844,-1659.0,0.000137,2]
[331565909,1720517445853,-1830.0,0.000137,2]
[331565911,1720517445863,-1251.0,0.000137,2]
[331565913,1720517445872,-361.0,0.000137,2]
[331565915,1720517445881,-302.632,0.000137,2]
[331565917,1720517445890,-427.00309722,0.00013711,2]
[331565919,1720517445898,-9890.0,0.0001373,2]
[331565921,1720517445907,-246.0,0.0001374,2]
[331565923,1720517445917,-173.47,0.00013747,2]
[331565925,1720517445927,-427.00309722,0.00013759,2]
[331565927,1720517445938,-150.18290234,0.0001378,2]
[331565929,1720517445947,-4513.38450765,0.0001379,2]
[331565931,1720517445956,-4513.38450765,0.0001379,2]
[331565933,1720517445966,-356.93123625,0.00013798,5]
[331565935,1720517445975,-1677.69735471,0.00013799,2]
[331565937,1720517445984,-1677.69735466,0.00013799,2]
[331565939,1720517445994,-150.492,0.000138,2]
[331565941,1720517446004,-150.197,0.000138,2]
[331565943,1720517446013,-150.271,0.000138,2]
[331565945,1720517446022,-150.302,0.000138,2]
[331565947,1720517446031,-185.648,0.000138,2]
[331565949,1720517446040,-259.795,0.000138,2]
[331565951,1720517446051,-261.039,0.000138,2]
[331565953,1720517446060,-150.0,0.000138,2]
[331565955,1720517446069,-150.235,0.000138,2]
[331565957,1720517446078,-1300.0,0.000138,5]
[331565959,1720517446087,-427.00309722,0.00013806,2]
[331565961,1720517446096,-427.00309722,0.00013853,2]
[331565963,1720517446106,-500.0,0.00013879,2]
[331565965,1720517446115,-500.0,0.00013879,2]
[331565967,1720517446124,-500.0,0.00013879,2]
[331565969,1720517446133,-500.0,0.00013879,2]
[331565971,1720517446143,-500.0,0.00013879,2]
[331565973,1720517446152,-500.0,0.00013879,2]
[331565975,1720517446161,-196.32412527,0.00013879,2]
[331565977,1720517446170,-500.0,0.00013879,2]
[331565979,1720517446179,-500.0,0.00013879,2]
[331565981,1720517446190,-500.0,0.00013879,2]
[331565984,1720517446204,-167.22307845,0.00013879,2]
[331565986,1720517446213,-787.0,0.0001388,2]
[331565988,1720517446222,-690771.89035783,0.0001388,2]
[331565990,1720517446232,-153.239336,0.0001388,2]
[331565992,1720517446241,-151.0,0.0001388,2]
[331565994,1720517446250,-151.0,0.0001388,2]
[331565996,1720517446259,-266.794983,0.0001388,2]
[331565998,1720517446268,-151.0,0.0001388,2]
[331566000,1720517446277,-266.794983,0.0001388,2]
[331566002,1720517446287,-152.870209,0.0001388,2]
[331566004,1720517446296,-273.903841,0.0001388,2]
[331566006,1720517446305,-151.0,0.0001388,2]
[331566008,1720517446314,-151.0,0.0001388,2]
[331566010,1720517446324,-151.0,0.0001388,2]
[331566012,1720517446334,-151.0,0.0001388,2]
[331566014,1720517446343,-151.907019,0.0001388,2]
[331566016,1720517446352,-151.0,0.0001388,2]
[331566018,1720517446362,-154.948186,0.0001388,2]
[331566020,1720517446371,-297.872454,0.0001388,2]
[331566022,1720517446380,-151.0,0.0001388,2]
[331566024,1720517446389,-151.0,0.0001388,2]
[331566026,1720517446399,-151.0,0.0001388,2]
[331566028,1720517446408,-151.0,0.0001388,2]
[331566030,1720517446418,-151.0,0.0001388,2]
[331566032,1720517446427,-151.0,0.0001388,2]
[331566034,1720517446437,-209.488929,0.0001388,2]
[331566037,1720517446447,-151.0,0.0001388,2]
[331566039,1720517446456,-985.016997,0.0001388,2]
[331566040,1720517446465,-985.016997,0.0001388,2]
[331566043,1720517446475,-151.0,0.0001388,2]
[331566045,1720517446484,-225.308434,0.0001388,2]
[331566047,1720517446493,-151.0,0.0001388,2]
[331566049,1720517446503,-151.0,0.0001388,2]
[331566051,1720517446513,-154.039956,0.0001388,2]
[331566053,1720517446528,-233.939256,0.0001388,2]
[331566055,1720517446537,-233.939256,0.0001388,2]
[331566057,1720517446547,-151.0,0.0001388,2]
[331566059,1720517446556,-22244.0,0.00013887,2]
[331566060,1720517446567,-7500.0,0.00013889,2]
[331566061,1720517446577,-150.0,0.000139,2]
[331566062,1720517446587,-1000.0,0.000139,2]
[331566063,1720517446597,-1300.0,0.000139,5]
[331566064,1720517446606,-427.00309722,0.000139,2]
[331566066,1720517446616,-326.58773452,0.000139,2]
[331566068,1720517446626,-1677.69735466,0.00013971,2]
[331566070,1720517446636,-584.0,0.00013975,2]
[331566072,1720517446645,-4513.38450765,0.0001398,2]
[331566074,1720517446655,-263.64472197,0.00013988,2]
[331566076,1720517446664,-500.0,0.00013988,2]
[331566078,1720517446675,-380.40643948,0.00013988,2]
[331566080,1720517446685,-640.0,0.00013988,2]
[331566083,1720517446695,-500.0,0.00013988,2]
[331566085,1720517446705,-526079.09048649,0.00013989,2]
[331566087,1720517446715,-151.0,0.00013989,2]
[331566089,1720517446725,-151.0,0.00013989,2]
[331566091,1720517446734,-266.794983,0.00013989,2]
[331566093,1720517446743,-228.306481,0.00013989,2]
[331566095,1720517446753,-266.794983,0.00013989,2]
[331566097,1720517446764,-151.0,0.00013989,2]
[331566099,1720517446774,-151.0,0.00013989,2]
[331566101,1720517446783,-151.0,0.00013989,2]
[331566103,1720517446794,-226.180211,0.00013989,2]
[331566105,1720517446804,-151.0,0.00013989,2]
[331566107,1720517446815,-151.0,0.00013989,2]
[331566109,1720517446824,-216.336509,0.00013989,2]
[331566111,1720517446833,-191.007594,0.00013989,2]
[331566113,1720517446842,-151.0,0.00013989,2]
[331566115,1720517446851,-151.0,0.00013989,2]
[331566117,1720517446860,-291.948784,0.00013989,2]
[331566119,1720517446869,-153.144318,0.00013989,2]
[331566121,1720517446879,-985.016997,0.00013989,2]
[331566123,1720517446887,-985.016997,0.00013989,2]
[331566125,1720517446897,-151.0,0.00013989,2]
[331566127,1720517446907,-151.0,0.00013989,2]
[331566129,1720517446916,-151.0,0.00013989,2]
[331566131,1720517446928,-233.939256,0.00013989,2]
[331566134,1720517446939,-233.939256,0.00013989,2]
[331566136,1720517446948,-151.0,0.00013989,2]
[331566138,1720517446958,-2249.01292162,0.0001399,2]
[331566140,1720517446967,-151.0,0.0001399,2]
[331566142,1720517446976,-151.0,0.0001399,2]
[331566144,1720517446986,-266.794983,0.0001399,2]
[331566146,1720517446996,-266.794983,0.0001399,2]
[331566148,1720517447005,-151.0,0.0001399,2]
[331566150,1720517447015,-151.0,0.0001399,2]
[331566152,1720517447024,-151.0,0.0001399,2]
[331566154,1720517447034,-151.0,0.0001399,2]
[331566156,1720517447043,-6949.4104399,0.0001399,2]
[331566158,1720517447053,-412.65615989,0.0001399,2]
[331566160,1720517447069,-5175.84933711,0.0001399,2]
[331566162,1720517447078,-4227.600554,0.0001399,2]
[331566164,1720517447087,-2866.6956111,0.0001399,2]
[331566166,1720517447097,-53796.1409402,0.0001399,2]
[331566168,1720517447106,-43261.2279791,0.0001399,2]
[331566170,1720517447116,-32726.3150179,0.0001399,2]
[331566172,1720517447125,-22191.4020568,0.0001399,2]
[331566175,1720517447135,-151.0,0.0001399,2]
[331566176,1720517447144,-151.0,0.0001399,2]
[331566179,1720517447153,-151.0,0.0001399,2]
[331566180,1720517447163,-985.016997,0.0001399,2]
[331566183,1720517447172,-985.016997,0.0001399,2]
[331566185,1720517447181,-151.0,0.0001399,2]
[331566186,1720517447192,-176.051521,0.0001399,2]
[331566189,1720517447202,-151.0,0.0001399,2]
[331566191,1720517447212,-233.939256,0.0001399,2]
[331566193,1720517447221,-233.939256,0.0001399,2]
[331566195,1720517447230,-151.0,0.0001399,2]
[331566197,1720517447239,-174394.80447679,0.00014,2]
[331566201,1720517447273,-154.83751245,0.00012999,2]
[331566205,1720517447298,-345.16248755,0.00014,2]
[331566207,1720517447310,-386.87455297,0.00014,2]
[331566210,1720517447321,-6161.70495555,0.00014,2]
[331566212,1720517447333,-661.66608519,0.00014,2]
[331566226,1720517447495,-10201.67273579,0.0001359,2]
[331566228,1720517447512,-1122.48659999,0.0001359,2]
[331566783,1720517487862,167.76,0.00011021,2]
[331566786,1720517585779,300.86783018,0.00011021,2]
[331566799,1720517800695,718.51339869,0.0001,2]
[331566800,1720517804749,220.46996505,0.00011199,2]
[331566801,1720517805093,155.16593126,0.00011199,2]
[331566802,1720517809062,155.20033949,0.00011199,2]
[331566803,1720517820523,35599.55324681,0.00011199,2]
[331566805,1720517830630,30000.0,0.00011199,2]
[331566810,1720517845201,155.0,0.00011199,2]
[331566811,1720517886878,173.17705101,0.00011199,2]
[331566816,1720517942332,450.95794745,0.00011199,2]
[331566818,1720517996736,200.58236272,0.00011199,2]
[331566820,1720518049892,167.46,9.875e-05,2]
[331566823,1720518104074,408.64,0.00010421,2]
[331566824,1720518118969,-150.0,0.00011201,2]
[331566826,1720518141519,1254.14,0.00027,120]
[331566830,1720518220125,155.0,0.00011199,2]
[331566833,1720518344060,155.41610123,0.00011199,2]
[331566837,1720518537685,1399.54620502,0.00011199,2]
[331566838,1720518562053,-6362.94486518,0.00011434,2]
[331566839,1720518562095,-6362.94486518,0.00011434,2]
[331566840,1720518562137,-6362.94486518,0.00011434,2]
[331566841,1720518562184,-1973.16540446,0.00011434,2]
[331566842,1720518562218,-338.373512,0.00011491,2]
[331566843,1720518562253,-138.65581539,0.00011549,2]
[331566850,1720518632900,-11.34418461,0.00011549,2]
[331566852,1720518632911,-160.27755312,0.00012056,2]
[331566854,1720518632925,-250.0,0.00012062,2]
[331566855,1720518632936,-78.37826227,0.00012156,2]
[331566856,1720518632950,-758.46063196,0.00012156,2]
[331566857,1720518632963,-715.22272661,0.00012156,2]
[331566858,1720518632975,-657.78837916,0.00012156,2]
[331566859,1720518632986,-513.53277893,0.00012207,2]
[331566860,1720518633000,-2731.28504997,0.00012207,2]
[331566861,1720518633013,-20645.1821711,0.00012207,2]
[331566862,1720518633023,-3426.681247,0.00012207,2]
[331566863,1720518633032,-192.1,0.00012238,2]
[331566864,1720518633042,-150.0,0.00012284,2]
[331566865,1720518633053,-346.90762572,0.00012314,2]
[331566866,1720518633064,-155.21192421,0.00012314,2]
[331566867,1720518633075,-250.0,0.00012347,2]
[331566868,1720518633086,-200.0,0.00012492,2]
[331566869,1720518633095,-152.35,0.00012531,2]
[331566870,1720518633105,-255.0,0.00012611,2]
[331566871,1720518633114,-408.64,0.00012685,2]
[331566872,1720518633124,-167.61,0.00012688,2]
[331566873,1720518633137,-1612.6,0.00012713,2]
[331566874,1720518633148,-160.27755312,0.00012828,2]
[331566875,1720518633158,-248.64,0.00012844,2]
[331566876,1720518633168,-28195.6527,0.000129,2]
[331566877,1720518633178,-13998.5966418,0.000129,2]
[331566878,1720518633191,-328.64556,0.000129,2]
[331566879,1720518633203,-577.76847127,0.000129,2]
[331566880,1720518633214,-34782.47162693,0.000129,2]
[331566881,1720518633223,-1007.8326,0.000129,2]
[331566882,1720518633234,-2366.5058,0.000129,2]
[331566883,1720518633245,-10000.0,0.00013012,2]
[331566884,1720518633255,-227.27128939,0.00013128,2]
[331566885,1720518633266,-1000.0,0.0001346,2]
[331566886,1720518633275,-5565.338,0.0001349,2]
[331566887,1720518633286,-528.99378221,0.00013516,2]
[331566888,1720518633301,-395.30040255,0.00013543,2]
[331566889,1720518633312,-730.03551561,0.00013543,2]
[331566890,1720518633322,-160.27755312,0.00013599,2]
[331566891,1720518633332,-1000.0,0.00013698,5]
[331566892,1720518633342,-1951.37,0.00013699,2]
[331566893,1720518633353,-544.95,0.00013699,2]
[331566894,1720518633362,-587.32,0.00013699,2]
[331566895,1720518633372,-735.07,0.00013699,5]
[331566896,1720518633381,-250.0,0.00013699,2]
[331566897,1720518633392,-274.46519158,0.00013699,5]
[331566898,1720518633402,-1659.0,0.000137,2]
[331566899,1720518633414,-361.0,0.000137,2]
[331566900,1720518633425,-1830.0,0.000137,2]
[331566901,1720518633434,-1251.0,0.000137,2]
[331566902,1720518633447,-1071.0,0.000137,2]
[331566903,1720518633456,-166.0,0.000137,2]
[331566904,1720518633466,-619.0,0.000137,2]
[331566905,1720518633475,-444.0,0.000137,2]
[331566906,1720518633485,-503.946,0.000137,2]
[331566907,1720518633495,-845.197,0.000137,2]
[331566908,1720518633506,-2377.0,0.000137,2]
[331566909,1720518633516,-150.0,0.000137,2]
[331566910,1720518633526,-1304.0,0.000137,2]
[331566911,1720518633538,-3276.0,0.000137,2]
[331566912,1720518633548,-283.0,0.000137,2]
[331566913,1720518633558,-1990.0,0.000137,2]
[331566914,1720518633567,-549.0,0.000137,2]
[331566915,1720518633578,-5815.0,0.000137,2]
[331566916,1720518633587,-291.0,0.000137,2]
[331566917,1720518633598,-1665.0,0.000137,2]
[331566918,1720518633608,-1199.0,0.000137,2]
[331566919,1720518633619,-38269.0,0.000137,2]
[331566920,1720518633631,-5180.0,0.000137,2]
[331566921,1720518633642,-417.93936495,0.00013737,2]
[331566922,1720518633651,-433.0,0.00013766,2]
[331566923,1720518633661,-173.47,0.00013767,2]
[331566924,1720518633671,-1174.38814828,0.00013799,2]
[331566925,1720518633683,-1174.38814826,0.00013799,2]
[331566926,1720518633693,-196.09224429,0.00013802,2]
[331566927,1720518633706,-218.11438004,0.00013802,2]
[331566928,1720518633716,-380.35151486,0.00013802,2]
[331566929,1720518633725,-174.32393277,0.00013802,2]
[331566930,1720518633736,-293.19496383,0.00013802,2]
[331566931,1720518633749,-1174.38814826,0.00013811,2]
[331566932,1720518633759,-309.26,0.00013812,2]
[331566933,1720518633769,-722.68,0.00013812,2]
[331566934,1720518633779,-534.28,0.00013812,2]
[331566935,1720518633789,-276.18433692,0.00013849,2]
[331566936,1720518633798,-328.50066625,0.00013849,2]
[331566937,1720518633808,-500.0,0.0001386,2]
[331566938,1720518633817,-5464.13673165,0.0001388,2]
[331566939,1720518633827,-200.0,0.00013888,2]
[331566940,1720518633837,-163.93444029,0.00013889,2]
[331566941,1720518633847,-1000.0,0.000139,2]
[331566942,1720518633856,-185.66455592,0.000139,2]
[331566943,1720518633866,-163.72600369,0.000139,2]
[331566944,1720518633875,-847.06128568,0.000139,2]
[331566945,1720518633885,-3850.0241,0.000139,2]
[331566946,1720518633894,-316.90942906,0.000139,2]
[331566947,1720518633904,-15126.60567379,0.000139,2]
[331566948,1720518633913,-323.31487622,0.000139,2]
[331566949,1720518633927,-1174.38814826,0.00013967,2]
[331566950,1720518633936,-3074.9818235,0.00013993,2]
[331566951,1720518633947,-1373.8542196,0.00013993,2]
[331566952,1720518633958,-691.14739766,0.00013999,2]
[331566953,1720518633969,-354.41937068,0.00013999,2]
[331566954,1720518633979,-500.0,0.00013999,2]
[331566955,1720518633989,-185.53472444,0.00013999,2]
[331566956,1720518634000,-500.0,0.00013999,2]
[331566957,1720518634010,-500.0,0.00013999,2]
[331566958,1720518634021,-500.0,0.00013999,2]
[331566959,1720518634031,-500.0,0.00013999,2]
[331566960,1720518634040,-404.40697334,0.00013999,2]
[331566961,1720518634050,-500.0,0.00013999,2]
[331566962,1720518634060,-500.0,0.00013999,2]
[331566963,1720518634069,-500.0,0.00013999,2]
[331566964,1720518634079,-500.0,0.00013999,2]
[331566965,1720518634089,-500.0,0.00013999,2]
[331566966,1720518634098,-478.94522347,0.00013999,2]
[331566967,1720518634108,-500.0,0.00013999,2]
[331566968,1720518634118,-500.0,0.00013999,2]
[331566969,1720518634127,-500.0,0.00013999,2]
[331566970,1720518634138,-500.0,0.00013999,2]
[331566971,1720518634149,-500.0,0.00013999,2]
[331566972,1720518634158,-585.59665057,0.00013999,2]
[331566973,1720518634167,-500.0,0.00013999,2]
[331566974,1720518634176,-500.0,0.00013999,2]
[331566975,1720518634186,-500.0,0.00013999,2]
[331566976,1720518634198,-250.95362589,0.00013999,2]
[331566977,1720518634207,-500.0,0.00013999,2]
[331566978,1720518634216,-500.0,0.00013999,2]
[331566979,1720518634226,-500.0,0.00013999,2]
[331566980,1720518634235,-500.0,0.00013999,2]
[331566981,1720518634245,-500.0,0.00013999,2]
[331566982,1720518634254,-500.0,0.00013999,2]
[331566983,1720518634264,-500.0,0.00013999,2]
[331566984,1720518634274,-500.0,0.00013999,2]
[331566985,1720518634283,-500.0,0.00013999,2]
[331566986,1720518634293,-500.0,0.00013999,2]
[331566987,1720518634312,-500.0,0.00013999,2]
[331566988,1720518634323,-500.0,0.00013999,2]
[331566989,1720518634334,-500.0,0.00013999,2]
[331566990,1720518634344,-500.0,0.00013999,2]
[331566991,1720518634354,-500.0,0.00013999,2]
[331566992,1720518634364,-500.0,0.00013999,2]
[331566993,1720518634374,-500.0,0.00013999,2]
[331566994,1720518634385,-500.0,0.00013999,2]
[331566995,1720518634395,-179.87479547,0.00013999,2]
[331566996,1720518634407,-500.0,0.00013999,2]
[331566997,1720518634416,-500.0,0.00013999,2]
[331566998,1720518634426,-500.0,0.00013999,2]
[331566999,1720518634436,-791.0,0.00014,2]
[331567000,1720518634447,-201.1720104,0.00014,2]
[331567001,1720518634457,-3173.39087467,0.00014,2]
[331567002,1720518634510,-46049.41248337,0.00014,2]
[331567003,1720518634522,-985.42,0.00014,2]
[331567004,1720518634536,-873.0,0.00014,2]
[331567014,1720518638199,-10000.0,0.00013012,2]
[331567015,1720518638208,-593.20627358,0.00013472,2]
[331567016,1720518638218,-163.93444029,0.00013849,2]
[331567017,1720518638227,-2236941.4608164,0.00014,2]
[331567018,1720518638242,-1213.33212,0.00014,2]
[331567019,1720518638254,-10000.04297598,0.00014,2]
[331567020,1720518638354,-718.0,0.00014,2]
[331567021,1720518638364,-1991.48663959,0.00014,2]
[331567022,1720518638376,-577.792,0.00014,2]
[331567023,1720518638396,-600.0,0.00014,2]
[331567024,1720518638408,-3743.91511063,0.00014,2]
[331567025,1720518638420,-8491.66447959,0.00014,2]
[331567098,1720518640242,-1710.88019025,0.00013012,2]
[331567099,1720518640389,-2023.225,0.00013012,2]
[331567272,1720518643684,-265.6000002,0.00012652,2]
[331567273,1720518644820,-122.5999998,0.00012652,2]
[331567274,1720518644830,-155.67154217,0.00013012,2]
[331567275,1720518644842,-319.999995,0.00013012,2]
[331567276,1720518644857,-5790.22327258,0.00013012,2]
[331567277,1720518644867,-9021.74746121,0.00013012,2]
[331567278,1720518644876,-847431.25206612,0.00014,2]
[331567279,1720518644887,-653.31270692,0.00014,2]
[331567280,1720518644904,-551.13351608,0.00014,2]
[331567291,1720518683649,-746.3386,0.000136,2]
[331567292,1720518683659,-955.33413579,0.00014,2]
[331567312,1720519227734,366.5,0.00010982,2]
[331567316,1720519338215,616.99780305,0.00011199,2]
[331567317,1720519429501,256.48064281,0.00011199,2]
[331567338,1720519832362,-540.396828,0.00011659,2]
[331567344,1720519832923,-70.603172,0.00011659,2]
[331567348,1720519832934,-198.91,0.00012723,2]
[331567350,1720519832944,-129.69074286,0.0001273,2]
[331567356,1720519832957,-120.30925714,0.0001273,2]
[331567360,1720519832969,-385.32,0.00012782,2]
[331567362,1720519832978,-6896.4125371,0.00012965,2]
[331567367,1720519832988,-187.23,0.00012965,2]
[331567370,1720519832998,-198.95,0.00013231,2]
[331567374,1720519833008,-499.99,0.00013245,2]
[331567375,1720519833020,-1000.0,0.00013288,2]
[331567377,1720519833029,-300.0,0.000133,4]
[331567379,1720519833039,-150.0,0.00013397,2]
[331567381,1720519833048,-300.0,0.00013397,2]
[331567383,1720519833058,-449.0,0.00013398,2]
[331567385,1720519833068,-150.0,0.00013398,2]
[331567387,1720519833078,-619.0,0.00013398,2]